fUSD/lending_fUSD_20240210
["ID","MTS","AMOUNT","RATE_DAILY","PERIOD"]
[313651961,1707541846378,-1237.02,0.00024657,2]
[313651962,1707541846387,-500.0,0.00024657,2]
[313651963,1707541846397,-1014.79,0.00024657,2]
[313651964,1707541846407,-500.0,0.00024657,2]
[313651965,1707541846417,-701.54,0.00024657,2]
[313651966,1707541846426,-797.39,0.00024657,2]
[313651967,1707541846436,-500.0,0.00024657,2]
[313651968,1707541846446,-1877.41,0.00024657,2]
[313651969,1707541846456,-500.0,0.00024657,2]
[313651970,1707541846466,-824.19,0.00024657,2]
[313651971,1707541846476,-500.0,0.00024657,2]
[313651972,1707541846486,-780.84,0.00024657,2]
[313651973,1707541846495,-2774.65,0.00024657,2]
[313651974,1707541846505,-11120.76,0.00024657,2]
[313651975,1707541846514,-500.0,0.00024657,2]
[313651976,1707541846524,-500.0,0.00024657,2]
[313651977,1707541846534,-500.0,0.00024657,2]
[313651978,1707541846543,-841.34,0.00024657,2]
[313651979,1707541846553,-500.0,0.00024657,2]
[313651980,1707541846563,-548.98,0.00024657,2]
[313651981,1707541846573,-3133.73,0.00024657,2]
[313651982,1707541846582,-500.0,0.00024657,2]
[313651983,1707541846592,-5696.15,0.00024657,2]
[313651984,1707541846601,-1369.16,0.00024657,2]
[313651985,1707541846611,-1083.9,0.00024657,2]
[313651986,1707541846620,-514.81778074,0.00024657,2]
[313651987,1707541846630,-500.0,0.00024657,2]
[313651988,1707541846640,-3213.78,0.00024657,2]
[313651989,1707541846649,-500.0,0.00024657,2]
[313651990,1707541846662,-858.57,0.00024657,2]
[313651991,1707541846672,-1992.71,0.00024657,2]
[313651992,1707541846682,-756.03,0.00024657,2]
[313651993,1707541846691,-1694.87,0.00024657,2]
[313651994,1707541846700,-21142.71,0.00024657,2]
[313651995,1707541846710,-500.0,0.00024657,2]
[313651996,1707541846720,-3065.8,0.00024657,2]
[313651997,1707541846729,-500.0,0.00024657,2]
[313651998,1707541846739,-750.69,0.00024657,2]
[313651999,1707541846748,-500.0,0.00024657,2]
[313652000,1707541846757,-500.0,0.00024657,2]
[313652001,1707541846767,-500.0,0.00024657,2]
[313652002,1707541846776,-500.0,0.00024657,2]
[313652003,1707541846785,-500.0,0.00024657,2]
[313652004,1707541846794,-1076.84,0.00024657,2]
[313652005,1707541846804,-500.0,0.00024657,2]
[313652006,1707541846813,-3466.34,0.00024657,2]
[313652007,1707541846822,-1002.98,0.00024657,2]
[313652008,1707541846831,-500.0,0.00024657,2]
[313652009,1707541846841,-500.0,0.00024657,2]
[313652010,1707541846850,-569.26,0.00024657,2]
[313652011,1707541846859,-500.0,0.00024657,2]
[313652012,1707541846869,-565.79439182,0.00024657,2]
[313652013,1707541846879,-500.0,0.00024657,2]
[313652014,1707541846888,-532.38,0.00024657,2]
[313652015,1707541846897,-1066.53,0.00024657,2]
[313652016,1707541846908,-500.0,0.00024657,2]
[313652017,1707541846917,-723.87,0.00024657,2]
[313652018,1707541846927,-6160.91,0.00024657,2]
[313652019,1707541846936,-571.07693418,0.00024657,2]
[313652020,1707541846945,-496.4582655,0.00024657,2]
[313652021,1707541846954,-500.0,0.00024657,2]
[313652022,1707541846963,-500.0,0.00024657,2]
[313652023,1707541846973,-3525.48,0.00024657,2]
[313652024,1707541846983,-556.85,0.00024657,2]
[313652025,1707541846993,-500.0,0.00024657,2]
[313652026,1707541847003,-187.8313477,0.00024657,2]
[313652027,1707541847014,-533.08957682,0.00024657,2]
[313652028,1707541847023,-4907.77,0.00024657,2]
[313652029,1707541847033,-500.0,0.00024657,2]
[313652030,1707541847043,-500.0,0.00024657,2]
[313652031,1707541847053,-4920.21,0.00024657,2]
[313652032,1707541847062,-604.05,0.00024657,2]
[313652033,1707541847072,-770.08,0.00024657,2]
[313652034,1707541847081,-250.0,0.00024658,2]
[313652035,1707541847090,-152.56464471,0.0002475,2]
[313652036,1707541847100,-848.59535418,0.00024831,2]
[313652037,1707541847109,-500.0,0.00024931,2]
[313652038,1707541847118,-500.0,0.00024931,2]
[313652039,1707541847127,-500.0,0.00024931,2]
[313652040,1707541847138,-163.53809867,0.00024931,2]
[313652041,1707541847148,-500.0,0.00024931,2]
[313652042,1707541847158,-500.0,0.00024931,2]
[313652043,1707541847167,-162.6968933,0.00024931,2]
[313652044,1707541847177,-500.0,0.00024931,2]
[313652045,1707541847186,-500.0,0.00024931,2]
[313652046,1707541847195,-701.35,0.00024931,2]
[313652047,1707541847204,-500.0,0.00024931,2]
[313652048,1707541847213,-500.0,0.00024931,2]
[313652049,1707541847223,-500.0,0.00024931,2]
[313652050,1707541847232,-500.0,0.00024931,2]
[313652051,1707541847241,-500.0,0.00024931,2]
[313652052,1707541847250,-303.04595797,0.00024931,2]
[313652053,1707541847260,-500.0,0.00024931,2]
[313652054,1707541847269,-500.0,0.00024931,2]
[313652055,1707541847279,-526.2716841,0.00024931,2]
[313652056,1707541847288,-500.0,0.00024931,2]
[313652057,1707541847297,-500.0,0.00024931,2]
[313652058,1707541847306,-649.816259,0.00024931,2]
[313652059,1707541847315,-500.0,0.00024931,2]
[313652060,1707541847324,-500.0,0.00024931,2]
[313652061,1707541847333,-500.0,0.00024931,2]
[313652062,1707541847342,-500.0,0.00024931,2]
[313652063,1707541847352,-500.0,0.00024931,2]
[313652064,1707541847361,-354.30284465,0.00024931,2]
[313652065,1707541847370,-500.0,0.00024931,2]
[313652066,1707541847379,-522.40185531,0.00024931,2]
[313652067,1707541847388,-500.0,0.00024931,2]
[313652068,1707541847398,-500.0,0.00024931,2]
[313652069,1707541847407,-500.0,0.00024931,2]
[313652070,1707541847416,-500.0,0.00024931,2]
[313652071,1707541847426,-500.0,0.00024931,2]
[313652072,1707541847435,-532.5949996,0.00024931,2]
[313652073,1707541847444,-336.1462253,0.00024931,2]
[313652074,1707541847453,-500.0,0.00024931,2]
[313652075,1707541847463,-456.47041273,0.00024931,2]
[313652076,1707541847472,-752.41,0.00024931,7]
[313652077,1707541847481,-500.0,0.00024931,2]
[313652078,1707541847490,-500.0,0.00024931,2]
[313652079,1707541847502,-532.89,0.00024931,2]
[313652080,1707541847511,-500.0,0.00024931,2]
[313652081,1707541847520,-500.0,0.00024931,2]
[313652082,1707541847530,-500.0,0.00024931,2]
[313652083,1707541847539,-500.0,0.00024931,2]
[313652084,1707541847549,-500.0,0.00024931,2]
[313652085,1707541847558,-500.0,0.00024931,2]
[313652086,1707541847567,-500.0,0.00024931,2]
[313652087,1707541847576,-500.0,0.00024931,2]
[313652088,1707541847586,-500.0,0.00024931,2]
[313652089,1707541847595,-703.46,0.00024931,2]
[313652090,1707541847604,-500.0,0.00024931,2]
[313652091,1707541847613,-500.0,0.00024931,2]
[313652092,1707541847622,-546.83975775,0.00024931,2]
[313652093,1707541847631,-500.0,0.00024931,2]
[313652094,1707541847640,-500.0,0.00024931,2]
[313652095,1707541847649,-500.0,0.00024931,2]
[313652096,1707541847660,-500.0,0.00024931,2]
[313652097,1707541847671,-500.0,0.00024931,2]
[313652098,1707541847681,-644.27,0.00024931,2]
[313652099,1707541847690,-443.50677091,0.00024931,2]
[313652100,1707541847699,-500.0,0.00024931,2]
[313652101,1707541847708,-500.0,0.00024931,2]
[313652102,1707541847717,-500.0,0.00024931,2]
[313652103,1707541847726,-647.71122149,0.00024931,2]
[313652104,1707541847735,-500.0,0.00024931,2]
[313652105,1707541847744,-500.0,0.00024931,2]
[313652106,1707541847755,-500.0,0.00024931,2]
[313652107,1707541847764,-500.0,0.00024931,2]
[313652108,1707541847773,-500.0,0.00024931,2]
[313652109,1707541847782,-500.0,0.00024931,2]
[313652110,1707541847791,-500.0,0.00024931,2]
[313652111,1707541847800,-500.0,0.00024931,2]
[313652112,1707541847810,-500.0,0.00024931,2]
[313652113,1707541847819,-500.0,0.00024931,2]
[313652114,1707541847828,-517.76594257,0.00024931,2]
[313652115,1707541847837,-500.0,0.00024931,2]
[313652116,1707541847847,-500.0,0.00024931,2]
[313652117,1707541847856,-500.0,0.00024931,2]
[313652118,1707541847865,-545.13,0.00024931,2]
[313652119,1707541847874,-500.0,0.00024931,2]
[313652120,1707541847884,-228.79162047,0.00024931,2]
[313652121,1707541847894,-500.0,0.00024931,2]
[313652122,1707541847903,-500.0,0.00024931,2]
[313652123,1707541847913,-500.0,0.00024931,2]
[313652124,1707541847922,-500.0,0.00024931,2]
[313652125,1707541847931,-500.0,0.00024931,2]
[313652126,1707541847942,-516.24120971,0.00024931,2]
[313652127,1707541847952,-239.03925375,0.00024931,2]
[313652128,1707541847961,-500.0,0.00024931,2]
[313652129,1707541847970,-500.0,0.00024931,2]
[313652130,1707541847980,-500.0,0.00024931,2]
[313652131,1707541847989,-500.0,0.00024931,2]
[313652132,1707541847999,-500.0,0.00024931,2]
[313652133,1707541848010,-500.0,0.00024931,2]
[313652134,1707541848019,-514.14,0.00024931,2]
[313652135,1707541848028,-500.0,0.00024931,2]
[313652136,1707541848037,-500.0,0.00024931,2]
[313652137,1707541848046,-256.78558013,0.00024931,2]
[313652138,1707541848056,-500.0,0.00024931,2]
[313652139,1707541848065,-500.0,0.00024931,2]
[313652140,1707541848075,-500.0,0.00024931,2]
[313652141,1707541848084,-500.0,0.00024931,2]
[313652142,1707541848093,-500.0,0.00024931,2]
[313652143,1707541848103,-1267.16,0.00024931,2]
[313652144,1707541848111,-500.0,0.00024931,2]
[313652145,1707541848120,-500.0,0.00024931,2]
[313652146,1707541848129,-500.0,0.00024931,2]
[313652147,1707541848138,-500.0,0.00024931,2]
[313652148,1707541848148,-500.0,0.00024931,2]
[313652149,1707541848157,-500.0,0.00024931,2]
[313652150,1707541848167,-500.0,0.00024931,2]
[313652151,1707541848176,-1984.15,0.00024931,2]
[313652152,1707541848186,-807.45,0.00024931,2]
[313652153,1707541848195,-500.0,0.00024931,2]
[313652154,1707541848205,-500.0,0.00024931,2]
[313652155,1707541848214,-500.0,0.00024931,2]
[313652156,1707541848223,-500.0,0.00024931,2]
[313652157,1707541848232,-500.0,0.00024931,2]
[313652158,1707541848241,-500.0,0.00024931,2]
[313652159,1707541848251,-518.19770418,0.00024931,2]
[313652160,1707541848260,-150.0,0.00024931,2]
[313652161,1707541848269,-987.68,0.00024931,2]
[313652162,1707541848278,-500.0,0.00024931,2]
[313652163,1707541848287,-500.0,0.00024931,2]
[313652164,1707541848296,-500.0,0.00024931,2]
[313652165,1707541848305,-500.0,0.00024931,2]
[313652166,1707541848314,-514.90137385,0.00024931,2]
[313652167,1707541848324,-192.68,0.00024931,2]
[313652168,1707541848333,-500.0,0.00024931,2]
[313652169,1707541848342,-500.0,0.00024931,2]
[313652170,1707541848351,-500.0,0.00024931,2]
[313652171,1707541848362,-500.0,0.00024931,2]
[313652172,1707541848371,-500.0,0.00024931,2]
[313652173,1707541848380,-529.73,0.00024931,2]
[313652174,1707541848390,-500.0,0.00024931,2]
[313652175,1707541848399,-500.0,0.00024931,2]
[313652176,1707541848408,-500.0,0.00024931,2]
[313652177,1707541848418,-500.0,0.00024931,2]
[313652178,1707541848427,-500.0,0.00024931,2]
[313652179,1707541848436,-568.87,0.00024931,2]
[313652180,1707541848446,-500.0,0.00024931,2]
[313652181,1707541848456,-500.0,0.00024931,2]
[313652182,1707541848465,-500.0,0.00024931,2]
[313652183,1707541848475,-500.0,0.00024931,2]
[313652184,1707541848484,-500.0,0.00024931,2]
[313652185,1707541848494,-500.0,0.00024931,2]
[313652186,1707541848503,-521.93911439,0.00024931,2]
[313652187,1707541848512,-648.85,0.00024931,2]
[313652188,1707541848521,-500.0,0.00024931,2]
[313652189,1707541848530,-528.28296502,0.00024931,2]
[313652190,1707541848539,-500.0,0.00024931,2]
[313652191,1707541848549,-500.0,0.00024931,2]
[313652192,1707541848558,-500.0,0.00024931,2]
[313652193,1707541848567,-500.0,0.00024931,2]
[313652194,1707541848577,-602.23,0.00024931,2]
[313652195,1707541848587,-500.0,0.00024931,2]
[313652196,1707541848596,-500.0,0.00024931,2]
[313652197,1707541848607,-500.0,0.00024931,2]
[313652198,1707541848616,-500.0,0.00024931,2]
[313652199,1707541848627,-500.0,0.00024931,2]
[313652200,1707541848637,-500.0,0.00024931,2]
[313652201,1707541848646,-500.0,0.00024931,2]
[313652202,1707541848659,-500.0,0.00024931,2]
[313652203,1707541848668,-597.85491177,0.00024931,2]
[313652204,1707541848677,-500.0,0.00024931,2]
[313652205,1707541848686,-500.0,0.00024931,2]
[313652206,1707541848695,-500.0,0.00024931,2]
[313652207,1707541848706,-650.09,0.00024931,2]
[313652208,1707541848715,-500.0,0.00024931,2]
[313652209,1707541848724,-500.0,0.00024931,2]
[313652210,1707541848735,-500.0,0.00024931,2]
[313652211,1707541848746,-521.36328858,0.00024931,2]
[313652212,1707541848758,-545.39,0.00024931,2]
[313652213,1707541848768,-500.0,0.00024931,2]
[313652214,1707541848777,-500.0,0.00024931,2]
[313652215,1707541848786,-500.0,0.00024931,2]
[313652216,1707541848795,-500.0,0.00024931,2]
[313652217,1707541848804,-500.0,0.00024931,2]
[313652218,1707541848813,-500.0,0.00024931,2]
[313652219,1707541848823,-500.0,0.00024931,2]
[313652220,1707541848831,-500.0,0.00024931,2]
[313652221,1707541848840,-500.0,0.00024931,2]
[313652222,1707541848849,-518.30057114,0.00024931,2]
[313652223,1707541848859,-728.16,0.00024931,2]
[313652224,1707541848868,-500.0,0.00024931,2]
[313652225,1707541848878,-516.59307434,0.00024931,2]
[313652226,1707541848887,-500.0,0.00024931,2]
[313652227,1707541848896,-500.0,0.00024931,2]
[313652228,1707541848905,-500.0,0.00024931,2]
[313652229,1707541848915,-532.35569174,0.00024931,2]
[313652230,1707541848925,-500.0,0.00024931,2]
[313652231,1707541848934,-500.0,0.00024931,2]
[313652232,1707541848943,-520.57,0.00024931,2]
[313652233,1707541848952,-500.0,0.00024931,2]
[313652234,1707541848961,-4417.49,0.00024931,2]
[313652235,1707541848970,-796.62,0.00024931,2]
[313652236,1707541848979,-500.0,0.00024931,2]
[313652237,1707541848988,-500.0,0.00024931,2]
[313652238,1707541848998,-500.0,0.00024931,2]
[313652239,1707541849007,-500.0,0.00024931,2]
[313652240,1707541849016,-500.0,0.00024931,2]
[313652241,1707541849025,-500.0,0.00024931,2]
[313652242,1707541849034,-500.0,0.00024931,2]
[313652243,1707541849043,-996.88,0.00024931,2]
[313652244,1707541849052,-500.0,0.00024931,2]
[313652245,1707541849061,-500.0,0.00024931,2]
[313652246,1707541849071,-500.0,0.00024931,2]
[313652247,1707541849080,-500.0,0.00024931,2]
[313652248,1707541849089,-500.0,0.00024931,2]
[313652249,1707541849099,-510.94127991,0.00024931,2]
[313652250,1707541849107,-500.0,0.00024931,2]
[313652251,1707541849117,-1603.32,0.00024931,2]
[313652252,1707541849126,-500.0,0.00024931,2]
[313652253,1707541849135,-10488.09,0.00024931,2]
[313652254,1707541849144,-500.0,0.00024931,2]
[313652255,1707541849153,-516.77903381,0.00024931,2]
[313652256,1707541849163,-268.9962878,0.00024931,2]
[313652257,1707541849172,-500.0,0.00024931,2]
[313652258,1707541849181,-500.0,0.00024931,2]
[313652259,1707541849191,-4700.07,0.00024931,2]
[313652260,1707541849200,-500.0,0.00024931,2]
[313652261,1707541849209,-500.0,0.00024931,2]
[313652262,1707541849218,-500.0,0.00024931,2]
[313652263,1707541849228,-500.0,0.00024931,2]
[313652264,1707541849237,-528.72,0.00024931,2]
[313652265,1707541849247,-1287.62,0.00024931,2]
[313652266,1707541849256,-500.0,0.00024931,2]
[313652267,1707541849265,-500.0,0.00024931,2]
[313652268,1707541849274,-500.0,0.00024931,2]
[313652269,1707541849284,-500.0,0.00024931,2]
[313652270,1707541849293,-525.99,0.00024931,2]
[313652271,1707541849302,-4321.02,0.00024931,2]
[313652272,1707541849311,-500.0,0.00024931,2]
[313652273,1707541849495,-500.0,0.00024931,2]
[313652274,1707541849505,-500.0,0.00024931,2]
[313652275,1707541849514,-8622.86,0.00024931,2]
[313652276,1707541849524,-1235.43,0.00024931,2]
[313652277,1707541849533,-30330.68,0.00024931,2]
[313652278,1707541849543,-500.0,0.00024931,2]
[313652279,1707541849552,-500.0,0.00024931,2]
[313652280,1707541849561,-500.0,0.00024931,2]
[313652281,1707541849571,-4111.15,0.00024931,2]
[313652282,1707541849580,-500.0,0.00024931,2]
[313652283,1707541849589,-500.0,0.00024931,2]
[313652284,1707541849598,-654.25,0.00024931,2]
[313652285,1707541849607,-500.0,0.00024931,2]
[313652286,1707541849617,-7598.26,0.00024931,2]
[313652287,1707541849626,-500.0,0.00024931,2]
[313652288,1707541849636,-500.0,0.00024931,2]
[313652289,1707541849645,-500.0,0.00024931,2]
[313652290,1707541849656,-500.0,0.00024931,2]
[313652291,1707541849669,-2154.39,0.00024931,2]
[313652292,1707541849678,-1378.02,0.00024931,2]
[313652293,1707541849688,-500.0,0.00024931,2]
[313652294,1707541849697,-500.0,0.00024931,2]
[313652295,1707541849709,-500.0,0.00024931,2]
[313652296,1707541849718,-4004.66,0.00024931,2]
[313652297,1707541849727,-1141.14,0.00024931,2]
[313652298,1707541849740,-500.0,0.00024931,2]
[313652299,1707541849749,-500.0,0.00024931,2]
[313652300,1707541849759,-500.0,0.00024931,2]
[313652301,1707541849768,-500.0,0.00024931,2]
[313652302,1707541849778,-563.45,0.00024931,2]
[313652303,1707541849787,-526.30037811,0.00024931,2]
[313652304,1707541849796,-500.0,0.00024931,2]
[313652305,1707541849805,-500.0,0.00024931,2]
[313652306,1707541849814,-5320.84,0.00024931,2]
[313652307,1707541849824,-500.0,0.00024931,2]
[313652308,1707541849833,-500.0,0.00024931,2]
[313652309,1707541849842,-500.0,0.00024931,2]
[313652310,1707541849851,-500.0,0.00024931,2]
[313652311,1707541849860,-16992.36,0.00024931,2]
[313652312,1707541849869,-500.0,0.00024931,2]
[313652313,1707541849878,-500.0,0.00024931,2]
[313652314,1707541849887,-672.96,0.00024931,2]
[313652315,1707541849896,-2003.76,0.00024931,2]
[313652316,1707541849905,-500.0,0.00024931,2]
[313652317,1707541849914,-3726.24,0.00024931,2]
[313652318,1707541849923,-500.0,0.00024931,2]
[313652319,1707541849932,-500.0,0.00024931,2]
[313652320,1707541849941,-500.0,0.00024931,2]
[313652321,1707541849950,-500.0,0.00024931,2]
[313652322,1707541849959,-500.0,0.00024931,2]
[313652323,1707541849969,-3043.1,0.00024931,2]
[313652324,1707541849977,-500.0,0.00024931,2]
[313652325,1707541849986,-500.0,0.00024931,2]
[313652326,1707541849995,-500.0,0.00024931,2]
[313652327,1707541850004,-500.0,0.00024931,2]
[313652328,1707541850014,-500.0,0.00024931,2]
[313652329,1707541850023,-1589.97,0.00024931,2]
[313652330,1707541850033,-500.0,0.00024931,2]
[313652331,1707541850042,-1214.58,0.00024931,2]
[313652332,1707541850051,-500.0,0.00024931,2]
[313652333,1707541850061,-8143.14,0.00024931,2]
[313652334,1707541850070,-500.0,0.00024931,2]
[313652335,1707541850080,-925.17,0.00024931,2]
[313652336,1707541850090,-10582.46,0.00024931,2]
[313652337,1707541850099,-500.0,0.00024931,2]
[313652338,1707541850108,-752.09,0.00024931,2]
[313652339,1707541850117,-4054.82,0.00024931,2]
[313652340,1707541850126,-500.0,0.00024931,2]
[313652341,1707541850135,-500.0,0.00024931,2]
[313652342,1707541850145,-500.0,0.00024931,2]
[313652343,1707541850154,-500.0,0.00024931,2]
[313652344,1707541850164,-997.19,0.00024931,2]
[313652345,1707541850173,-183.66108613,0.00024931,2]
[313652346,1707541850182,-500.0,0.00024931,2]
[313652347,1707541850191,-1086.84,0.00024931,2]
[313652348,1707541850200,-500.0,0.00024931,2]
[313652349,1707541850210,-989.49,0.00024931,2]
[313652350,1707541850219,-2893.62,0.00024931,2]
[313652351,1707541850228,-8417.08,0.00024931,2]
[313652352,1707541850237,-500.0,0.00024931,2]
[313652353,1707541850246,-500.0,0.00024931,2]
[313652354,1707541850255,-581.41231003,0.00024931,2]
[313652355,1707541850265,-762.91,0.00024931,2]
[313652356,1707541850275,-6092.25,0.00024931,2]
[313652357,1707541850284,-500.0,0.00024931,2]
[313652358,1707541850293,-500.0,0.00024931,2]
[313652359,1707541850303,-500.0,0.00024931,2]
[313652360,1707541850312,-5772.68,0.00024931,2]
[313652361,1707541850321,-500.0,0.00024931,2]
[313652362,1707541850330,-533.82,0.00024931,2]
[313652363,1707541850339,-3262.21,0.00024931,2]
[313652364,1707541850348,-500.0,0.00024931,2]
[313652365,1707541850357,-500.0,0.00024931,2]
[313652366,1707541850367,-500.0,0.00024931,2]
[313652367,1707541850376,-2553.08,0.00024931,2]
[313652368,1707541850385,-500.0,0.00024931,2]
[313652369,1707541850395,-500.0,0.00024931,2]
[313652370,1707541850404,-3141.04,0.00024931,2]
[313652371,1707541850414,-1237.02,0.00024931,2]
[313652372,1707541850423,-500.0,0.00024931,2]
[313652373,1707541850432,-1014.79,0.00024931,2]
[313652374,1707541850442,-500.0,0.00024931,2]
[313652375,1707541850452,-701.54,0.00024931,2]
[313652376,1707541850461,-797.39,0.00024931,2]
[313652377,1707541850471,-500.0,0.00024931,2]
[313652378,1707541850480,-1877.41,0.00024931,2]
[313652379,1707541850490,-500.0,0.00024931,2]
[313652380,1707541850499,-824.19,0.00024931,2]
[313652381,1707541850509,-500.0,0.00024931,2]
[313652382,1707541850518,-780.84,0.00024931,2]
[313652383,1707541850527,-2774.65,0.00024931,2]
[313652384,1707541850537,-11120.76,0.00024931,2]
[313652385,1707541850546,-500.0,0.00024931,2]
[313652386,1707541850556,-500.0,0.00024931,2]
[313652387,1707541850566,-420.61955381,0.00024931,2]
[313652388,1707541850576,-841.34,0.00024931,2]
[313652389,1707541850586,-500.0,0.00024931,2]
[313652390,1707541850595,-548.98,0.00024931,2]
[313652391,1707541850604,-3133.73,0.00024931,2]
[313652392,1707541850614,-500.0,0.00024931,2]
[313652393,1707541850623,-5696.15,0.00024931,2]
[313652394,1707541850632,-1369.16,0.00024931,2]
[313652395,1707541850642,-1083.9,0.00024931,2]
[313652396,1707541850652,-500.0,0.00024931,2]
[313652397,1707541850663,-3213.78,0.00024931,2]
[313652398,1707541850674,-500.0,0.00024931,2]
[313652399,1707541850683,-858.57,0.00024931,2]
[313652400,1707541850692,-1992.71,0.00024931,2]
[313652401,1707541850703,-756.03,0.00024931,2]
[313652402,1707541850712,-1694.87,0.00024931,2]
[313652403,1707541850722,-21142.71,0.00024931,2]
[313652404,1707541850731,-500.0,0.00024931,2]
[313652405,1707541850741,-3065.8,0.00024931,2]
[313652406,1707541850751,-750.69,0.00024931,2]
[313652407,1707541850760,-500.0,0.00024931,2]
[313652408,1707541850770,-500.0,0.00024931,2]
[313652409,1707541850779,-536.54282352,0.00024931,2]
[313652410,1707541850789,-500.0,0.00024931,2]
[313652411,1707541850798,-500.0,0.00024931,2]
[313652412,1707541850809,-500.0,0.00024931,2]
[313652413,1707541850818,-1076.84,0.00024931,2]
[313652414,1707541850828,-500.0,0.00024931,2]
[313652415,1707541850837,-3466.34,0.00024931,2]
[313652416,1707541850847,-1002.98,0.00024931,2]
[313652417,1707541850856,-500.0,0.00024931,2]
[313652418,1707541850865,-500.0,0.00024931,2]
[313652419,1707541850875,-569.26,0.00024931,2]
[313652420,1707541850884,-500.0,0.00024931,2]
[313652421,1707541850893,-500.0,0.00024931,2]
[313652422,1707541850903,-532.38,0.00024931,2]
[313652423,1707541850912,-1066.53,0.00024931,2]
[313652424,1707541850922,-500.0,0.00024931,2]
[313652425,1707541850930,-723.87,0.00024931,2]
[313652426,1707541850940,-6160.91,0.00024931,2]
[313652427,1707541850949,-500.0,0.00024931,2]
[313652428,1707541850958,-500.0,0.00024931,2]
[313652429,1707541850967,-556.85,0.00024931,2]
[313652430,1707541850977,-3525.48,0.00024931,2]
[313652431,1707541850987,-500.0,0.00024931,2]
[313652432,1707541850996,-4907.77,0.00024931,2]
[313652433,1707541851005,-500.0,0.00024931,2]
[313652434,1707541851015,-4920.21,0.00024931,2]
[313652435,1707541851024,-604.05,0.00024931,2]
[313652436,1707541851033,-770.08,0.00024931,2]
[313652437,1707541851044,-1250.0,0.00025,3]
[313652438,1707541851053,-18705.30158929,0.00025,4]
[313652439,1707541851062,-150.706909,0.00025,2]
[313652440,1707541851072,-999.99,0.00025,2]
[313652441,1707541851081,-183.13,0.0002501,2]
[313652442,1707541851091,-152.56464471,0.00025015,2]
[313652443,1707541851100,-500.0,0.00025205,2]
[313652444,1707541851114,-500.0,0.00025205,2]
[313652445,1707541851123,-500.0,0.00025205,2]
[313652446,1707541851133,-500.0,0.00025205,2]
[313652447,1707541851142,-552.34215232,0.00025205,2]
[313652448,1707541851152,-500.0,0.00025205,2]
[313652449,1707541851161,-500.0,0.00025205,2]
[313652450,1707541851170,-701.35,0.00025205,2]
[313652451,1707541851180,-500.0,0.00025205,2]
[313652452,1707541851189,-500.0,0.00025205,2]
[313652453,1707541851199,-500.0,0.00025205,2]
[313652454,1707541851208,-500.0,0.00025205,2]
[313652455,1707541851218,-500.0,0.00025205,2]
[313652456,1707541851227,-500.0,0.00025205,2]
[313652457,1707541851237,-500.0,0.00025205,2]
[313652458,1707541851247,-500.0,0.00025205,2]
[313652459,1707541851257,-500.0,0.00025205,2]
[313652460,1707541851266,-500.0,0.00025205,2]